bitfinex/quotes_ETHUSD_20241123
["timestamp","ask_amount","ask_price","bid_price","bid_amount"]
[1732347951068,0.03754724,3329.4,3329.3,0.02648316]
[1732347951456,0.03754724,3329.4,3328.8,0.2991]
[1732347951769,0.03754724,3329.4,3329.3,0.02648316]
[1732347951934,0.03754724,3329.4,3328.8,0.2991]
[1732347952971,0.90539945,3329.2,3328.9,0.2991]
[1732347953173,0.83845135,3329.1,3328.9,0.2991]
[1732347953473,0.17438508,3329.0,3328.9,0.2991]
[1732347953970,0.17438508,3329.0,3327.9,0.38904394]
[1732347953971,0.17438508,3329.0,3328.0,0.2991]
[1732347954171,0.17438508,3329.0,3328.5,0.2991]
[1732347954478,0.8009,3328.9,3328.5,0.2991]
[1732347955137,0.8009,3328.9,3328.2,0.2991]
[1732347956434,0.8009,3328.9,3328.3,0.2991]
[1732347957544,0.8009,3328.9,3328.4,0.2991]
[1732347957738,0.8009,3328.7,3328.4,0.2991]
[1732347958078,0.03755609,3328.6,3328.4,0.2991]
[1732347958632,0.8109,3328.5,3327.8,0.2991]
[1732347958946,0.03755786,3328.4,3327.8,0.2991]
[1732347959158,0.03755786,3328.4,3327.9,0.03007781]
[1732347959573,0.8109,3328.5,3327.9,0.03007781]
[1732347959943,0.8109,3328.0,3327.3,0.2991]
[1732347960233,0.90539945,3327.6,3326.1,0.90539945]
[1732347960435,0.8109,3327.8,3326.4,0.90539945]
[1732347961248,0.98252995,3327.8,3326.4,0.90539945]
[1732347961758,0.03756719,3327.7,3326.4,0.90539945]
[1732347962079,0.98252995,3327.8,3326.4,0.90539945]
[1732347962771,0.98252995,3327.8,3325.7,0.02]
[1732347962772,0.8109,3327.8,3326.2,1.91451089]
[1732347962947,0.8109,3327.8,3326.7,0.7938]
[1732347963139,0.8027,3328.7,3326.8,0.7938]
[1732347963477,0.03756137,3328.6,3326.8,0.7938]
[1732347963683,0.99790767,3328.7,3327.1,3.0]
[1732347963838,0.8027,3328.7,3327.2,0.7938]
[1732347964147,0.8027,3328.7,3327.5,3.0]
[1732347964336,0.8027,3328.7,3327.7,0.7938]
[1732347965087,0.8027,3328.7,3327.7,1.0929]
[1732347966804,0.8027,3329.4,3327.7,1.0929]
[1732347967996,0.0375506,3329.3,3327.7,1.0929]
[1732347968301,0.8027,3329.2,3327.7,1.0929]
[1732347968488,0.03755065,3329.1,3327.7,1.0929]
[1732347969876,0.03755065,3329.1,3327.7,1.82239968]
[1732347970078,0.03755065,3329.1,3327.9,0.2991]
[1732347970279,0.8027,3329.2,3327.9,0.2991]
[1732347970923,0.8027,3329.2,3328.2,0.8491]
[1732347971099,0.8027,3329.5,3328.4,0.2991]
[1732347973411,0.05089253,3329.8,3328.4,0.2991]
[1732347973412,0.8027,3329.6,3328.4,0.2991]
[1732347973607,0.8027,3329.6,3328.0,1.0929]
[1732347973793,0.8027,3329.5,3328.0,1.0929]
[1732347973971,0.8027,3329.5,3328.2,0.2991]
[1732347973972,0.8027,3329.3,3328.2,0.2991]
[1732347974177,0.8027,3329.1,3328.2,0.2991]
[1732347974377,0.8027,3328.9,3328.2,0.2991]
[1732347974987,0.8027,3328.9,3327.8,0.2991]
[1732347977214,0.03755299,3328.8,3327.8,0.2991]
[1732347977729,0.27172109,3329.4,3327.7,0.7938]
[1732347977730,0.7618,3329.5,3327.9,1.1275]
[1732347978058,0.037553,3330.5,3329.2,0.2991]
[1732347978883,0.037553,3330.5,3329.1,0.2991]
[1732347980940,0.05753897,3331.4,3329.1,0.2991]
[1732347981121,0.79933897,3330.5,3329.1,0.2991]
[1732347981523,0.7618,3330.5,3329.1,0.2991]
[1732347981724,0.7618,3330.5,3329.3,0.2991]
[1732347982603,0.7618,3330.5,3329.2,0.2991]
[1732347983394,0.7618,3330.5,3329.6,0.2991]
[1732347985516,0.03753419,3330.4,3329.6,0.2991]
[1732347986192,0.7618,3330.5,3329.6,0.2991]
[1732347990046,0.03753503,3330.4,3329.6,0.2991]
[1732347990902,0.03753503,3330.4,3329.5,1.095]
[1732347991226,0.7721,3330.3,3328.7,0.7959]
[1732347991417,0.30995664,3330.2,3328.7,0.7959]
[1732347991944,0.30995664,3330.2,3328.8,0.2991]
[1732347992238,0.30995664,3330.2,3329.0,0.2991]
[1732347992941,0.7721,3329.7,3328.6,0.2991]
[1732347993151,0.30995664,3330.2,3328.6,0.2991]
[1732347993152,0.7721,3329.4,3328.6,0.2991]
[1732347993351,0.03755068,3329.3,3328.2,0.7959]
[1732347993646,0.80965069,3329.4,3328.2,0.7959]
[1732347993828,0.27241616,3329.3,3328.2,0.7959]
[1732347994033,0.27241616,3329.3,3328.2,1.095]
[1732347998653,0.7844,3329.1,3328.2,0.2991]
[1732347998946,0.27241616,3329.3,3328.2,0.2991]
[1732347998947,0.7844,3328.9,3328.2,0.2991]
[1732347999707,0.7844,3328.9,3327.9,0.2991]
[1732348004778,0.7844,3328.9,3327.8,0.803]
[1732348004779,0.7844,3328.9,3328.1,0.2991]
[1732348007743,0.7844,3328.9,3327.9,0.2991]
[1732348009696,0.02138434,3328.5,3327.9,0.2991]
[1732348010369,0.8219,3328.4,3327.9,0.2991]
[1732348010572,0.01,3330.1,3327.8,3.0]
[1732348010573,0.8219,3329.3,3328.3,0.2991]
[1732348016191,0.8219,3329.3,3328.3,1.04081485]
[1732348016364,0.8219,3329.3,3328.3,0.2991]
[1732348017870,0.8029,3330.0,3328.6,0.2991]
[1732348018075,0.55,3329.9,3328.6,0.2991]
[1732348018281,0.55,3329.7,3328.6,0.2991]
[1732348020303,0.8029,3329.5,3328.6,0.2991]
[1732348020667,0.03754663,3329.4,3328.6,0.2991]
[1732348021201,0.8029,3329.5,3328.6,0.2991]
[1732348021362,0.03754663,3329.4,3328.6,0.2991]
[1732348021703,0.03754663,3329.4,3328.5,0.8053]
[1732348021704,0.8029,3329.3,3328.9,0.2991]
[1732348022785,0.8029,3329.3,3328.6,0.2991]
[1732348024272,0.55,3329.5,3328.6,0.2991]
[1732348025275,0.7698,3329.8,3328.8,0.2991]
[1732348027022,0.7698,3329.8,3329.0,1.1242]
[1732348027175,0.7698,3330.5,3329.0,1.1242]
[1732348027383,0.55,3330.3,3329.0,1.1242]
[1732348027808,0.55,3330.3,3329.2,0.2991]
[1732348028121,0.55,3330.4,3329.4,0.2991]
[1732348028494,0.5455,3330.4,3329.4,0.2991]
[1732348030684,0.5455,3330.4,3328.2,0.01]
[1732348030685,0.7698,3331.3,3329.8,0.2991]
[1732348030889,0.7698,3331.6,3330.2,0.2991]
[1732348031187,0.7698,3331.6,3330.4,0.2991]
[1732348031830,0.7698,3331.6,3330.6,0.2991]
[1732348032299,0.80732519,3331.9,3330.8,0.2991]
[1732348032633,0.7698,3331.9,3330.7,0.8251]
[1732348033689,0.55,3331.8,3330.7,0.8251]
[1732348037440,0.03752384,3331.7,3330.9,1.1242]
[1732348040217,0.55,3331.4,3330.0,0.2991]
[1732348040538,0.01,3332.3,3330.0,0.2991]
[1732348040539,0.55,3331.1,3330.0,0.2991]
[1732348040717,0.55,3330.9,3330.0,0.2991]
[1732348041104,0.55,3330.9,3330.1,0.2991]
[1732348041444,0.55,3330.7,3329.4,0.2991]
[1732348041615,0.0375362,3330.6,3329.4,0.2991]
[1732348041797,0.55,3330.5,3329.4,0.2991]
[1732348041997,0.0375362,3330.4,3329.4,0.2991]
[1732348042213,0.55,3330.2,3328.5,0.32858342]
[1732348042429,0.8014,3330.0,3328.5,0.2991]
[1732348043142,0.8014,3330.0,3328.7,0.2991]
[1732348045213,0.8014,3330.0,3328.6,0.7682]
[1732348045214,0.03754443,3329.9,3328.6,0.7682]
[1732348045538,1.3006,3329.8,3328.6,0.7682]
[1732348045737,0.55,3329.5,3328.3,0.2991]
[1732348047225,0.03755084,3329.5,3328.3,0.2991]
[1732348047648,0.03755084,3329.5,3328.2,0.7682]
[1732348047951,0.55,3329.6,3328.2,0.7682]
[1732348050226,0.55,3329.6,3328.5,1.91451089]
[1732348052546,0.55,3329.6,3328.2,0.7682]
[1732348052740,0.55,3329.6,3328.2,4.51844671]
[1732348053558,0.03754826,3329.5,3328.2,4.51844671]
[1732348053721,0.03754825,3329.4,3328.2,4.51844671]
[1732348053918,0.55,3329.6,3328.2,4.51844671]
[1732348054170,0.7506,3329.4,3328.2,3.7682]
[1732348054317,0.03754824,3329.3,3328.2,3.7682]
[1732348054520,0.7506,3329.2,3328.2,0.7682]
[1732348054827,0.03755081,3329.1,3328.2,0.7682]
[1732348055433,0.03755081,3329.1,3328.2,0.46945]
[1732348055630,0.03755081,3329.1,3327.7,2.21361089]
[1732348055943,0.55,3329.1,3327.8,3.0]
[1732348056142,0.7506,3329.0,3327.8,3.0]
[1732348057770,0.7506,3329.0,3327.9,0.2991]
[1732348058537,0.7506,3329.0,3328.1,0.2991]
[1732348059473,0.8162,3329.3,3328.7,0.8234]
[1732348059631,0.8162,3329.3,3328.8,0.2991]
[1732348059835,1.91451089,3330.1,3328.8,0.2991]
[1732348059836,0.85374818,3329.2,3328.8,0.2991]
[1732348060175,0.8162,3329.0,3328.8,0.2991]
[1732348060476,0.8162,3329.0,3327.7,1.91451089]
[1732348060477,0.8162,3329.0,3327.8,0.2991]
[1732348060829,0.8162,3329.0,3327.8,1.04565098]
[1732348061033,0.8162,3329.3,3328.2,0.2991]
[1732348061451,0.8162,3329.3,3328.6,0.2991]
[1732348061654,0.8162,3329.7,3328.8,0.2991]
[1732348062654,0.8162,3329.7,3328.9,0.2991]
[1732348064438,0.7603,3330.0,3328.9,5.21361089]
[1732348067680,0.7603,3330.0,3328.9,0.2991]
[1732348069203,0.55,3330.5,3328.9,0.2991]
[1732348069337,0.57393259,3330.5,3328.9,0.2991]
[1732348071965,0.57393259,3330.5,3329.0,0.03003476]
[1732348072174,0.55,3330.3,3329.0,0.03003476]
[1732348072497,0.76235585,3330.3,3328.9,0.2991]
[1732348072662,0.55,3330.1,3328.9,0.2991]
[1732348075786,0.55,3330.1,3329.0,0.2991]
[1732348075978,0.55,3330.1,3329.0,0.32913474]
[1732348077515,0.55,3330.1,3329.0,0.2991]
[1732348078182,0.55,3329.8,3329.0,0.2991]
[1732348079203,0.02393259,3329.7,3329.0,0.2991]
[1732348079396,0.02393259,3329.7,3328.1,1.91451089]
[1732348079397,0.7874,3329.6,3328.4,0.2991]
[1732348079590,0.55,3329.5,3328.4,0.2991]
[1732348079794,0.55,3329.5,3328.4,0.32913913]
[1732348080424,0.55,3329.5,3328.6,0.2991]
[1732348080781,0.55,3329.5,3328.6,0.32913913]
[1732348082522,0.55,3329.5,3328.6,0.2991]
[1732348082681,0.55,3329.5,3328.6,0.32913913]
[1732348082886,0.7874,3329.6,3328.8,0.2991]
[1732348083299,0.55,3329.9,3329.2,0.2991]
[1732348083500,0.57393259,3329.9,3329.2,0.2991]
[1732348083884,0.55,3329.9,3329.3,0.7987]
[1732348084087,0.55,3329.9,3329.4,0.2991]
[1732348086431,0.8052,3330.0,3329.4,0.2991]
[1732348087694,0.02393259,3329.9,3329.4,0.2991]
[1732348087911,0.8052,3330.0,3329.4,0.2991]
[1732348088119,0.02393259,3329.9,3328.2,0.2991]
[1732348088289,0.02393259,3329.9,3328.3,0.03003649]
[1732348088488,0.8052,3329.8,3328.3,0.03003649]
[1732348088759,0.57393259,3329.7,3328.3,0.03003649]
[1732348088955,0.57393259,3329.7,3328.2,0.2991]
[1732348088956,0.8052,3329.6,3328.2,0.2991]
[1732348089096,0.8052,3329.6,3328.4,0.2991]
[1732348089728,0.8052,3329.6,3328.5,0.03004044]
[1732348090294,0.8052,3329.6,3328.4,0.03004044]
[1732348090893,0.8052,3329.4,3328.3,0.2991]
[1732348091094,0.55,3329.2,3328.4,0.2991]
[1732348091321,0.82913259,3329.1,3328.4,0.2991]
[1732348091506,0.55,3329.0,3328.4,0.2991]
[1732348092121,0.55,3329.0,3327.9,0.7987]
[1732348092122,0.57393259,3329.0,3328.5,0.2991]
[1732348092328,0.8052,3328.9,3327.9,0.7987]
[1732348092526,0.55,3328.6,3328.0,0.2991]
[1732348092728,0.02393259,3328.5,3328.0,0.2991]
[1732348093201,0.02393259,3328.5,3327.1,0.2991]
[1732348093399,0.55,3328.3,3327.3,0.2991]
[1732348093621,0.02393259,3328.2,3327.3,0.2991]
[1732348094434,0.02393259,3328.2,3327.2,0.2991]
[1732348094748,0.55,3328.0,3327.2,0.2991]
[1732348095408,0.55,3328.0,3327.4,0.2991]
[1732348096042,0.02393259,3328.8,3327.4,0.2991]
[1732348096043,0.55,3328.6,3327.4,0.32915236]
[1732348096533,0.55,3328.6,3327.4,0.2991]
[1732348096534,0.02393259,3328.5,3327.4,0.2991]
[1732348096747,0.55,3328.3,3327.4,0.2991]
[1732348097034,0.57393259,3328.3,3327.4,0.2991]
[1732348098030,0.55,3328.3,3327.4,0.2991]
[1732348098442,0.55,3328.0,3327.4,0.2991]
[1732348098642,0.55,3328.0,3327.2,0.2991]
[1732348099519,0.55,3328.0,3327.1,0.2991]
[1732348104118,0.55,3327.8,3327.2,0.2991]
[1732348104339,0.55,3327.6,3327.2,0.2991]
[1732348105129,0.55,3327.6,3326.8,0.2991]
[1732348108433,0.55,3327.4,3326.6,0.2991]
[1732348110538,0.55,3327.2,3326.4,0.2991]
[1732348111422,0.55,3327.0,3326.1,0.2991]
[1732348111651,0.55,3326.8,3326.1,0.2991]
[1732348112561,0.55,3326.8,3325.7,0.875]
[1732348112562,0.55,3326.8,3325.8,1.05522301]
[1732348112770,0.55,3326.8,3325.8,0.2991]
[1732348113617,0.86827851,3326.9,3325.7,0.875]
[1732348113618,0.55,3326.6,3325.7,0.20169999]
[1732348113858,0.55,3326.3,3325.8,0.2991]
[1732348114056,0.8307,3326.2,3325.8,0.2991]
[1732348114274,0.86828339,3326.2,3325.7,0.20149999]
[1732348115391,0.8307,3326.2,3325.8,0.299]
[1732348116219,0.8307,3326.2,3325.8,3.299]
[1732348117253,0.8307,3326.2,3325.8,0.299]
[1732348117642,0.8307,3326.2,3325.8,3.299]
[1732348118392,0.8307,3326.2,3325.8,0.299]
[1732348118686,0.8307,3326.2,3325.8,3.299]
[1732348119676,0.8307,3326.2,3325.8,0.299]
[1732348119864,0.8307,3326.2,3325.8,3.299]
[1732348120064,0.03758339,3326.1,3325.8,3.299]
[1732348120378,0.8307,3326.2,3325.8,3.299]
[1732348120883,0.8307,3326.2,3325.8,0.299]
[1732348121189,0.8307,3326.2,3325.8,3.299]
[1732348122171,0.8307,3326.2,3325.8,0.299]
[1732348122885,0.8307,3326.2,3325.7,0.50049999]
[1732348124772,0.55,3326.1,3325.7,0.50049999]
[1732348129391,0.55,3325.9,3325.7,0.50049999]
[1732348129830,1.348,3325.8,3325.7,0.50049999]
[1732348131401,0.55,3325.8,3325.7,0.50049999]
[1732348131607,1.348,3325.8,3325.7,0.50049999]
[1732348132497,0.55,3325.7,3324.9,0.299]
[1732348132701,0.55,3325.7,3324.7,0.299]
[1732348135408,0.55,3325.5,3324.7,0.299]
[1732348135896,0.798,3325.4,3324.0,0.299]
[1732348136101,0.798,3325.4,3323.7,1.91451089]
[1732348136102,0.55,3325.3,3324.2,0.299]
[1732348137943,0.798,3325.2,3324.2,0.299]
[1732348142141,0.798,3325.2,3324.2,1.03921848]
[1732348142328,0.798,3325.2,3324.2,0.299]
[1732348145033,0.798,3325.2,3324.2,1.05809294]
[1732348145235,0.798,3325.2,3324.4,0.299]
[1732348145634,0.03759226,3326.4,3324.8,0.299]
[1732348145818,0.8281,3326.3,3325.0,3.299]
[1732348146021,0.8281,3326.3,3325.2,0.299]
[1732348148023,0.7799,3326.1,3325.3,0.299]
[1732348148255,0.58758113,3326.2,3325.3,0.299]
[1732348148256,0.81748505,3326.0,3325.3,0.299]
[1732348148786,0.7799,3326.0,3325.3,0.299]
[1732348149108,0.7799,3326.0,3324.9,0.299]
[1732348150534,0.7799,3326.0,3324.9,1.06333167]
[1732348150734,0.7799,3326.0,3324.9,0.299]
[1732348152849,0.7785,3326.0,3324.9,0.299]
[1732348153458,0.7785,3326.0,3324.8,1.5405685]
[1732348153459,0.7785,3326.0,3325.1,3.299]
[1732348153626,0.03758159,3327.1,3325.3,0.299]
[1732348154461,0.03758159,3327.1,3325.5,0.299]
[1732348155311,0.55,3327.0,3325.5,0.299]
[1732348156022,0.7799,3326.7,3325.5,0.299]
[1732348157166,0.7799,3326.7,3325.7,0.299]
[1732348157875,0.7799,3326.7,3325.9,0.299]
[1732348158687,0.7799,3326.7,3326.0,0.299]
[1732348158858,0.7933,3326.3,3326.2,0.299]
[1732348159053,0.7933,3326.3,3325.1,0.299]
[1732348159243,0.55,3326.4,3325.1,0.299]
[1732348159244,0.7933,3326.1,3325.1,0.299]
[1732348159442,0.7933,3325.9,3325.1,0.299]
[1732348159983,0.7933,3325.9,3325.0,2.2413243]
[1732348159984,0.7933,3325.9,3325.3,0.299]
[1732348160873,0.7933,3325.9,3325.1,0.299]
[1732348175262,0.7933,3325.9,3325.3,0.299]
[1732348175454,0.55,3326.5,3325.3,0.299]
[1732348175653,0.7533,3326.6,3325.3,0.299]
[1732348176362,0.7533,3326.6,3325.5,0.299]
[1732348176570,0.7533,3326.6,3325.7,0.299]
[1732348179524,0.7533,3326.6,3325.9,0.299]
[1732348180011,5.31,3328.1,3325.9,0.299]
[1732348180012,0.7602,3327.4,3326.1,2.21351089]
[1732348180218,0.7602,3327.4,3326.1,5.21351089]
[1732348180378,0.7602,3327.4,3326.5,0.299]
[1732348180582,0.7602,3327.4,3326.9,0.299]
[1732348181583,0.7602,3327.4,3326.6,0.299]
[1732348184121,0.7602,3327.4,3326.8,0.299]
[1732348186408,0.8233,3328.2,3326.8,0.299]
[1732348187327,0.8233,3328.2,3326.8,3.299]
[1732348187503,0.8233,3328.2,3327.0,0.299]
[1732348189195,0.0375627,3328.1,3327.0,0.299]
[1732348189395,0.8233,3328.4,3327.0,0.299]
[1732348189603,0.8233,3328.2,3327.0,0.299]
[1732348190031,0.8233,3328.0,3327.0,0.299]
[1732348191443,0.8233,3328.0,3327.0,1.0605572]
[1732348191798,0.8233,3328.0,3327.0,0.299]
[1732348192500,0.8233,3327.8,3326.7,0.299]
[1732348193226,0.8233,3327.6,3326.7,0.299]
[1732348193421,0.8233,3327.4,3326.7,0.299]
[1732348195954,0.19145109,3328.2,3326.8,0.8132]
[1732348195955,0.8233,3328.0,3326.8,0.8132]
[1732348196712,0.03756655,3327.9,3326.8,0.8132]
[1732348196943,0.8233,3327.8,3326.8,0.8132]
[1732348197149,0.55,3328.5,3326.7,0.299]
[1732348197150,0.8233,3327.6,3326.7,0.299]
[1732348197353,0.86086665,3327.5,3326.7,0.299]
[1732348197548,0.8233,3327.5,3326.7,0.299]
[1732348198924,0.8233,3327.5,3326.0,4.50939949]
[1732348198925,0.8233,3327.5,3326.1,0.299]
[1732348201475,0.7894,3327.3,3326.1,0.299]
[1732348201803,0.7894,3327.3,3325.6,3.32681341]
[1732348201804,0.7894,3327.3,3325.9,0.299]
[1732348202152,0.8176,3327.1,3325.9,0.299]
[1732348202448,0.8176,3326.9,3325.9,0.299]
[1732348202667,0.03757564,3326.8,3325.9,0.299]
[1732348202986,0.55,3327.4,3325.9,0.299]
[1732348202987,0.8176,3326.7,3325.9,0.299]
[1732348203504,0.8176,3326.7,3326.0,0.299]
[1732348204598,0.8176,3326.7,3325.6,0.299]
[1732348204766,0.8176,3326.7,3325.6,3.299]
[1732348205702,0.8176,3326.7,3326.0,3.0]
[1732348205850,0.86337992,3326.6,3326.0,3.0]
[1732348206282,0.86337992,3326.6,3325.6,0.299]
[1732348206848,0.8258,3326.6,3325.7,0.62581341]
[1732348207473,0.8258,3326.6,3325.7,0.32681341]
[1732348207662,0.8258,3326.4,3325.8,0.299]
[1732348207997,0.8258,3326.2,3325.8,0.299]
[1732348208762,0.8258,3326.2,3325.4,0.299]
[1732348211773,0.8258,3326.2,3325.1,0.299]
[1732348213666,0.8258,3326.2,3325.0,0.32681341]
[1732348213667,0.8258,3326.2,3325.3,0.299]
[1732348215017,0.8258,3326.2,3325.9,0.299]
[1732348215308,0.8258,3326.5,3325.9,0.299]
[1732348215478,0.8258,3327.2,3326.4,0.299]
[1732348216007,0.8258,3327.2,3326.4,1.1019]
[1732348216621,0.03757244,3327.1,3326.5,0.299]
[1732348216823,0.8258,3327.0,3326.5,0.299]
[1732348217533,0.8258,3327.0,3325.9,0.299]
[1732348219030,0.7633,3326.8,3325.9,0.299]
[1732348219401,0.7633,3326.6,3326.0,0.299]
[1732348219607,0.7633,3326.4,3326.0,0.299]
[1732348220565,0.7633,3326.4,3325.7,0.299]
[1732348221483,0.7633,3326.4,3325.8,0.299]
[1732348222643,0.7633,3326.4,3325.9,0.299]
[1732348223439,0.7633,3326.4,3325.2,0.299]
[1732348230101,0.7633,3326.4,3325.3,0.299]
[1732348230288,0.81098248,3326.3,3325.3,0.299]
[1732348230485,0.7734,3326.3,3325.3,0.299]
[1732348231206,0.7734,3326.3,3325.2,0.299]
[1732348232110,0.7734,3326.3,3325.3,0.05779679]
[1732348238106,0.7734,3326.3,3325.5,0.299]
[1732348238269,0.7734,3326.3,3325.6,0.0576401]
[1732348238863,0.7734,3326.3,3325.8,0.299]
[1732348239075,0.7734,3326.3,3325.9,0.05751983]
[1732348239307,0.7734,3326.3,3325.8,0.299]
[1732348239599,0.7734,3326.3,3325.9,0.05751983]
[1732348240182,0.7734,3326.3,3325.3,0.299]
[1732348240383,0.7734,3326.3,3326.0,0.05746618]
[1732348240709,0.8062,3326.1,3325.3,0.299]
[1732348241772,0.8062,3326.1,3325.2,0.299]
[1732348242781,0.8062,3326.1,3325.1,0.299]
[1732348247106,0.8062,3326.1,3325.2,0.05774166]
[1732348254198,0.8062,3326.1,3325.7,0.299]
[1732348254526,0.8062,3326.1,3325.8,0.05737099]
[1732348255808,0.8062,3326.1,3325.0,0.299]
[1732348256026,0.8062,3326.1,3325.2,0.299]
[1732348256396,0.8062,3326.1,3325.3,0.05758776]
[1732348257390,0.8062,3326.1,3325.0,0.299]
[1732348257631,0.8062,3326.1,3325.4,0.05758763]
[1732348257838,0.8062,3326.1,3325.0,0.299]
[1732348258150,0.8062,3326.1,3325.2,0.299]
[1732348258351,0.8062,3326.1,3325.3,0.05762378]
[1732348259056,0.8062,3326.1,3325.7,0.299]
[1732348259338,0.8062,3326.1,3325.8,0.05745144]
[1732348260442,0.8062,3326.1,3325.0,0.299]
[1732348260610,0.8062,3326.1,3325.2,0.299]
[1732348260940,0.8062,3326.1,3325.3,0.05766823]
[1732348261842,0.8062,3326.1,3325.3,0.35666823]
[1732348262950,0.8062,3326.1,3325.7,0.299]
[1732348263171,0.7523,3327.4,3325.8,0.05748886]
[1732348263316,0.7523,3327.1,3326.0,0.299]
[1732348263516,0.7523,3327.1,3326.1,0.05738042]
[1732348264612,0.7523,3327.1,3325.8,0.299]
[1732348264844,0.7523,3326.9,3326.2,0.05732955]
[1732348265057,0.59702815,3327.8,3326.1,0.299]
[1732348265058,0.7523,3326.5,3326.1,0.299]
[1732348265207,0.7523,3326.5,3326.3,0.05729341]
[1732348265430,0.7523,3326.5,3326.2,0.05732955]
[1732348265641,0.7523,3326.5,3326.4,0.05725727]
[1732348265856,0.7523,3326.5,3326.3,0.05729341]
[1732348266067,0.7523,3326.5,3326.4,0.05725727]
[1732348266469,0.7523,3326.5,3325.3,0.299]
[1732348266655,0.7523,3326.5,3326.4,0.05725727]
[1732348266980,0.7523,3326.5,3325.3,0.299]
[1732348267569,0.7523,3326.5,3325.4,0.05760648]
[1732348268968,0.7523,3326.5,3325.6,0.299]
[1732348269154,0.7523,3326.5,3325.7,0.05745086]
[1732348270180,0.7523,3326.5,3326.2,0.299]
[1732348270472,0.7523,3326.3,3326.2,0.299]
[1732348271162,0.7523,3326.3,3325.5,0.299]
[1732348273437,0.7523,3326.3,3325.3,0.299]
[1732348276836,0.7523,3326.0,3325.8,0.299]
[1732348277270,0.7523,3326.0,3325.9,0.05519767]
[1732348277577,0.7523,3326.0,3325.9,0.05520733]
[1732348277578,0.91823402,3326.0,3325.9,0.05520733]
[1732348277735,0.91823402,3326.0,3325.8,0.299]
[1732348277937,0.91823402,3326.0,3325.9,0.299]
[1732348278138,0.7523,3326.0,3325.9,0.299]
[1732348279053,0.7523,3326.0,3325.0,0.299]
[1732348279466,0.7523,3326.0,3325.1,0.0555032]
[1732348280284,0.7523,3326.0,3325.5,0.299]
[1732348280491,0.98873402,3325.9,3325.5,0.299]
[1732348280646,0.8228,3325.9,3325.6,0.05528567]
[1732348280843,0.8228,3325.9,3325.5,0.299]
[1732348281080,0.8228,3325.9,3325.7,0.05523727]
[1732348281306,0.8228,3325.9,3324.6,1.08368008]
[1732348281307,0.99578402,3325.9,3324.7,0.299]
[1732348281594,0.8228,3325.9,3324.7,0.299]
[1732348281785,0.8228,3325.9,3324.8,0.05556267]
[1732348286998,0.8228,3325.9,3324.9,0.299]
[1732348287167,0.8228,3325.9,3325.5,0.299]
[1732348287354,0.8228,3325.9,3325.7,0.299]
[1732348287554,0.8228,3325.9,3325.8,0.05568013]
[1732348288392,0.8228,3325.9,3325.8,0.35468013]
[1732348289280,0.8228,3325.9,3325.8,0.05568013]
[1732348289713,0.8228,3325.9,3325.5,0.299]
[1732348290200,0.8228,3325.9,3325.6,0.05549512]
[1732348290772,0.8228,3325.9,3325.1,0.299]
[1732348291006,0.8228,3325.9,3325.3,0.299]
[1732348291378,0.8228,3325.9,3325.4,0.05555518]
[1732348292478,0.8228,3325.9,3325.1,0.299]
[1732348292719,0.8228,3325.9,3325.5,0.0555692]
[1732348293015,0.8228,3325.9,3325.6,0.05553304]
[1732348293473,0.8219,3325.8,3325.7,0.05534597]
[1732348293816,0.99479402,3325.8,3325.2,0.299]
[1732348294115,0.8219,3325.8,3325.7,0.05519896]
[1732348294432,0.99479402,3325.8,3325.7,0.05519896]
[1732348294786,0.99479402,3325.8,3324.8,0.299]
[1732348295172,0.99479402,3325.8,3324.9,0.05551577]
[1732348297597,0.8219,3325.8,3324.9,0.05551577]
[1732348305021,0.8073,3326.8,3325.5,0.299]
[1732348305442,0.8073,3326.8,3325.6,0.05553185]
[1732348305756,0.97873402,3326.7,3325.6,0.05553185]
[1732348305955,0.8073,3326.7,3325.8,0.299]
[1732348306163,0.8073,3326.7,3325.9,0.05542339]
[1732348308366,0.8073,3326.5,3325.9,0.05542339]
[1732348308527,0.03757934,3326.4,3325.9,0.35442339]
[1732348308724,0.8073,3326.5,3325.9,0.35442339]
[1732348309665,0.8073,3326.5,3325.9,0.05542339]
[1732348310022,0.8073,3326.5,3325.6,0.299]
[1732348310247,0.8073,3326.5,3326.0,0.05535409]
[1732348310451,0.8073,3326.5,3325.8,0.299]
[1732348310655,0.8073,3326.5,3326.1,0.05533052]
[1732348310851,0.8073,3326.5,3325.8,0.299]
[1732348311074,0.8073,3326.5,3326.2,0.05529438]
[1732348311239,0.8073,3326.5,3325.9,0.299]
[1732348311863,0.8073,3326.5,3326.0,0.05534217]
[1732348312530,0.8073,3326.5,3325.6,0.299]
[1732348312755,0.8073,3326.5,3325.8,0.299]
[1732348313089,0.8073,3326.5,3325.9,0.05532353]
[1732348317835,0.8073,3326.5,3326.0,0.299]
[1732348318342,0.8073,3326.5,3326.1,0.05323026]
[1732348318545,0.03757821,3326.4,3326.1,0.05323026]
[1732348318772,0.8073,3326.5,3326.1,0.05323026]
[1732348318947,0.8073,3326.5,3325.8,0.299]
[1732348319140,0.8073,3326.5,3325.9,0.05330653]
[1732348320745,0.7678,3326.7,3326.0,0.299]
[1732348320946,0.7678,3327.4,3326.7,0.299]
[1732348321268,0.7678,3327.4,3326.8,0.05283763]
[1732348322471,0.7678,3328.1,3327.0,0.299]
[1732348322977,0.7678,3328.1,3327.1,0.05271684]